fUST/lending_fUST_20240910
["ID","MTS","AMOUNT","RATE_DAILY","PERIOD"]
[337682498,1725953083005,732.40484957,0.0001701,2]
[337682499,1725953092251,5000.0,0.0001701,2]
[337682508,1725953107475,5000.0,0.0001701,2]
[337682532,1725953123292,5000.0,0.0001701,2]
[337682547,1725953139772,5000.0,0.0001701,2]
[337682555,1725953154940,5000.0,0.0001701,2]
[337682559,1725953170174,5000.0,0.0001701,2]
[337682562,1725953186195,5000.0,0.0001701,2]
[337682568,1725953202452,5000.0,0.0001701,2]
[337682571,1725953218000,5000.0,0.0001701,2]
[337682572,1725953233636,5000.0,0.0001701,2]
[337682573,1725953248779,3493.60909957,0.0001701,2]
[337682651,1725953440085,-500.0,0.00017808,2]
[337682652,1725953440095,-150.0,0.00018691,2]
[337682653,1725953440105,-300.0,0.00018694,2]
[337682654,1725953440116,-300.0,0.00018694,2]
[337682655,1725953440125,-19562.34638615,0.00018695,2]
[337682656,1725953440407,-2856.95,0.00018695,2]
[337682664,1725953442852,-13.30305707,0.00018695,2]
[337682674,1725953446015,-568.86,0.00018695,2]
[337682754,1725954006539,10015.91126738,0.00027997,120]
[337683006,1725954632198,-300.0,0.00017371,2]
[337683007,1725954632222,-175.41938185,0.00017371,2]
[337683047,1725954638043,-124.58061815,0.00017371,2]
[337683049,1725954638054,-500.0,0.00017808,2]
[337683051,1725954638064,-24900.0,0.00017873,2]
[337683053,1725954638076,-308.509906,0.00017902,2]
[337683055,1725954638086,-225.8609559,0.00018025,2]
[337683057,1725954638096,-270.6017625,0.00018067,2]
[337683060,1725954638109,-250.0,0.00018207,2]
[337683061,1725954638123,-250.0,0.00018257,2]
[337683063,1725954638132,-250.0,0.00018306,2]
[337683065,1725954638142,-250.0,0.00018356,2]
[337683068,1725954638155,-250.0,0.00018406,2]
[337683070,1725954638164,-250.0,0.00018456,2]
[337683072,1725954638175,-250.0,0.00018506,2]
[337683074,1725954638193,-250.0,0.00018556,2]
[337683076,1725954638210,-4386.88486751,0.00018598,2]
[337683078,1725954638221,-250.0,0.00018606,2]
[337683080,1725954638232,-250.0,0.00018656,2]
[337683082,1725954638244,-4460.32893062,0.00018688,2]
[337683084,1725954638256,-168.879309,0.00018697,2]
[337683087,1725954638266,-250.0,0.00018706,2]
[337683089,1725954638277,-168.879309,0.00018711,2]
[337683091,1725954638287,-168.879309,0.00018724,2]
[337683093,1725954638297,-168.879309,0.00018738,2]
[337683095,1725954638307,-168.879309,0.00018751,2]
[337683097,1725954638317,-250.0,0.00018756,2]
[337683099,1725954638327,-168.879309,0.00018764,2]
[337683101,1725954638337,-168.879309,0.00018778,2]
[337683103,1725954638347,-168.879309,0.00018791,2]
[337683105,1725954638358,-250.0,0.00018806,2]
[337683106,1725954638371,-250.0,0.00018856,2]
[337683107,1725954638382,-250.0,0.00018906,2]
[337683109,1725954638392,-250.0,0.00018956,2]
[337683112,1725954638402,-248.0,0.00018966,2]
[337683113,1725954638413,-250.0,0.00019006,2]
[337683115,1725954638424,-153.0,0.00019041,2]
[337683118,1725954638434,-250.0,0.00019056,2]
[337683119,1725954638445,-250.0,0.00019106,2]
[337683121,1725954638456,-420.0,0.00019108,2]
[337683123,1725954638466,-250.0,0.00019156,2]
[337683126,1725954638477,-208.3247076,0.00019452,2]
[337683128,1725954638487,-208.3247076,0.00019452,2]
[337683130,1725954638497,-208.3247076,0.00019452,2]
[337683132,1725954638508,-208.3247076,0.00019452,2]
[337683134,1725954638518,-208.3247076,0.00019452,2]
[337683136,1725954638528,-207.5052536,0.00019452,2]
[337683138,1725954638538,-153.0,0.00019452,2]
[337683140,1725954638549,-4386.88486745,0.00019567,2]
[337683142,1725954638559,-153.0,0.00019726,2]
[337683144,1725954638569,-153.0,0.00019726,2]
[337683146,1725954638579,-153.0,0.00019726,2]
[337683148,1725954638590,-153.0,0.00019726,2]
[337683150,1725954638600,-153.0,0.00019726,2]
[337683152,1725954638611,-153.0,0.00019726,2]
[337683154,1725954638622,-153.0,0.00019726,2]
[337683156,1725954638633,-153.0,0.00019726,2]
[337683158,1725954638644,-153.0,0.00019726,2]
[337683161,1725954638654,-153.0,0.00019726,2]
[337683163,1725954638664,-153.0,0.00019726,2]
[337683165,1725954638674,-153.0,0.00019726,2]
[337683167,1725954638684,-153.0,0.00019726,2]
[337683169,1725954638694,-153.0,0.00019726,2]
[337683171,1725954638704,-153.0,0.00019726,2]
[337683173,1725954638714,-153.0,0.00019726,2]
[337683175,1725954638723,-998.1329396,0.0002,2]
[337683176,1725954638733,-720.79257977,0.00020076,2]
[337683178,1725954638752,-609.0,0.000201,2]
[337683181,1725954638762,-428.37715429,0.00020172,2]
[337683183,1725954638771,-409.17381482,0.00020172,2]
[337683185,1725954638782,-1000.0,0.00020257,2]
[337683187,1725954638793,-153.0,0.00020274,2]
[337683189,1725954638803,-153.0,0.00020274,2]
[337683191,1725954638813,-153.0,0.00020274,2]
[337683193,1725954638824,-153.0,0.00020274,2]
[337683195,1725954638834,-153.0,0.00020274,2]
[337683197,1725954638843,-153.0,0.00020274,2]
[337683199,1725954638853,-153.0,0.00020274,2]
[337683201,1725954638864,-2060.67245034,0.00020286,2]
[337683203,1725954638874,-500.0,0.00020366,2]
[337683205,1725954638883,-313.10779787,0.00020366,2]
[337683207,1725954638894,-500.0,0.00020366,2]
[337683209,1725954638904,-433.77928227,0.00020366,2]
[337683211,1725954638913,-497.24364226,0.00020366,2]
[337683213,1725954638922,-500.0,0.00020366,2]
[337683215,1725954638932,-500.0,0.00020366,2]
[337683217,1725954638941,-500.0,0.00020366,2]
[337683219,1725954638950,-500.0,0.00020366,2]
[337683221,1725954638960,-500.0,0.00020366,2]
[337683223,1725954638969,-500.0,0.00020366,2]
[337683225,1725954638979,-500.0,0.00020366,2]
[337683228,1725954638988,-500.0,0.00020366,2]
[337683230,1725954638998,-500.0,0.00020366,2]
[337683232,1725954639007,-500.0,0.00020366,2]
[337683234,1725954639016,-500.0,0.00020366,2]
[337683236,1725954639026,-500.0,0.00020366,2]
[337683238,1725954639035,-500.0,0.00020366,2]
[337683240,1725954639045,-500.0,0.00020366,2]
[337683242,1725954639054,-575.58000879,0.00020366,2]
[337683244,1725954639063,-500.0,0.00020366,2]
[337683246,1725954639072,-500.0,0.00020366,2]
[337683248,1725954639082,-500.0,0.00020366,2]
[337683250,1725954639091,-500.0,0.00020366,2]
[337683252,1725954639100,-500.0,0.00020366,2]
[337683254,1725954639111,-500.0,0.00020366,2]
[337683256,1725954639123,-500.0,0.00020366,2]
[337683258,1725954639133,-500.0,0.00020366,2]
[337683260,1725954639142,-500.0,0.00020366,2]
[337683262,1725954639151,-500.0,0.00020366,2]
[337683264,1725954639161,-500.0,0.00020366,2]
[337683266,1725954639171,-500.0,0.00020366,2]
[337683268,1725954639181,-500.0,0.00020366,2]
[337683270,1725954639191,-500.0,0.00020366,2]
[337683272,1725954639200,-500.0,0.00020366,2]
[337683275,1725954639211,-500.0,0.00020366,2]
[337683277,1725954639220,-500.0,0.00020366,2]
[337683279,1725954639229,-500.0,0.00020366,2]
[337683281,1725954639239,-500.0,0.00020366,2]
[337683283,1725954639248,-500.0,0.00020366,2]
[337683285,1725954639257,-500.0,0.00020366,2]
[337683287,1725954639267,-500.0,0.00020366,2]
[337683289,1725954639277,-500.0,0.00020366,2]
[337683291,1725954639286,-500.0,0.00020366,2]
[337683293,1725954639296,-500.0,0.00020366,2]
[337683295,1725954639306,-500.0,0.00020366,2]
[337683297,1725954639317,-500.0,0.00020366,2]
[337683299,1725954639328,-500.0,0.00020366,2]
[337683301,1725954639338,-580.26786115,0.00020366,2]
[337683303,1725954639348,-500.0,0.00020366,2]
[337683305,1725954639359,-500.0,0.00020366,2]
[337683307,1725954639370,-500.0,0.00020366,2]
[337683309,1725954639381,-59847.97352663,0.00020367,3]
[337683312,1725954639394,-17790.24017086,0.00020367,3]
[337683315,1725954639420,-22224.50659764,0.00020367,3]
[337683318,1725954639434,-25300.08970634,0.00020367,3]
[337684155,1725955050213,198.0,0.00018,5]
[337684401,1725955567768,658.6816805,0.000279,120]
[337684403,1725955589072,820.0496949,0.000279,120]
[337684442,1725955832025,-500.0,0.00017808,2]
[337684443,1725955832035,-300.0,0.00018205,2]
[337684445,1725955832045,-1297.59642893,0.00018206,2]
[337684455,1725955838167,-3124.50238111,0.00018206,2]
[337684456,1725955838180,-20477.90118996,0.00018206,2]
[337684457,1725955838190,-308.5099061,0.00018365,2]
[337684458,1725955838200,-172.417807,0.00018621,2]
[337684459,1725955838211,-172.417807,0.00018782,2]
[337684460,1725955838220,-172.417807,0.00018944,2]
[337684462,1725955838231,-153.0,0.000191,2]
[337684463,1725955838240,-172.417807,0.00019106,2]
[337684465,1725955838250,-181.826953,0.00019178,2]
[337684466,1725955838261,-172.417807,0.00019267,2]
[337684467,1725955838270,-172.417807,0.00019429,2]
[337684469,1725955838280,-172.417807,0.00019591,2]
[337684471,1725955838289,-208.2649181,0.00019778,2]
[337684472,1725955838299,-208.2649181,0.00019778,2]
[337684474,1725955838309,-208.3247076,0.00019778,2]
[337684476,1725955838318,-150.0,0.00019981,2]
[337684478,1725955838328,-200.0,0.0002,2]
[337684480,1725955838338,-1000.0,0.0002,2]
[337684482,1725955838347,-153.7912072,0.0002,2]
[337684484,1725955838356,-420.0,0.00020026,2]
[337684485,1725955838366,-494.82274585,0.00020026,2]
[337684487,1725955838375,-4920.04197298,0.00020077,2]
[337684489,1725955838385,-452.180076,0.00020134,2]
[337684491,1725955838394,-208.2649181,0.00020134,2]
[337684493,1725955838403,-208.2649181,0.00020134,2]
[337684495,1725955838412,-208.3247076,0.00020134,2]
[337684497,1725955838424,-415.754694,0.00020134,2]
[337684498,1725955838434,-208.2649181,0.00020134,2]
[337684499,1725955838444,-150.0,0.00020136,2]
[337684500,1725955838457,-1000.0,0.00020267,2]
[337684501,1725955838467,-49663.98941873,0.00020377,2]
[337684503,1725955840229,-3571.54423797,0.00020377,2]
[337684504,1725955840241,-22586.71578601,0.00020377,2]
[337684505,1725955840250,-160.0,0.00020386,3]
[337684506,1725955840262,-160.0,0.00020518,4]
[337684507,1725955840271,-150.112233,0.000206,4]
[337684508,1725955840281,-150.112233,0.000206,5]
[337684509,1725955840290,-160.0,0.00020649,5]
[337684510,1725955840299,-150.112233,0.000207,4]
[337684511,1725955840309,-150.112233,0.000207,4]
[337684512,1725955840318,-500.0,0.000207,2]
[337684513,1725955840327,-235.56076946,0.000207,2]
[337684514,1725955840337,-500.0,0.00020763,2]
[337684515,1725955840346,-500.0,0.00020763,2]
[337684516,1725955840355,-160.0,0.00020781,6]
[337684517,1725955840364,-500.0,0.00020799,2]
[337684518,1725955840373,-268.38362084,0.00020799,2]
[337684519,1725955840383,-500.0,0.00020799,2]
[337684520,1725955840392,-500.0,0.00020799,2]
[337684521,1725955840401,-352.37250404,0.00020799,2]
[337684522,1725955840410,-500.0,0.00020799,2]
[337684523,1725955840419,-500.0,0.00020799,2]
[337684524,1725955840429,-500.0,0.00020799,2]
[337684525,1725955840438,-266.88299407,0.00020799,2]
[337684915,1725956785674,-5000.0,0.00022,30]
[337684916,1725956785697,-5000.0,0.00022,30]
[337684917,1725956785723,-5000.0,0.00022,30]
[337684918,1725956785746,-5000.0,0.00022,30]
[337684919,1725956785768,-5000.0,0.00022,30]
[337684920,1725956785793,-5000.0,0.00022,30]
[337684921,1725956785815,-3026.90582985,0.00022,30]
[337684932,1725956903392,-1000.0,0.00025,25]
[337684940,1725956918214,-1000.0,0.00023,23]
[337684955,1725956997503,-1000.0,0.00021,21]
[337684981,1725957032413,-479.990542,0.00017808,2]
[337684982,1725957032424,-176.91824616,0.00019676,2]
[337684983,1725957035432,-160.0,0.0002157,12]
[337684984,1725957035456,-160.0,0.00021701,13]
[337684985,1725957035479,-160.0,0.00021833,14]
[337684986,1725957035569,-160.0,0.00021964,15]
[337684997,1725957038758,-3092.2934225,0.00019676,2]
[337684998,1725957038770,-1679.99999971,0.00019676,2]
[337684999,1725957038784,-2001.08638713,0.00019676,2]
[337685000,1725957038793,-168.34332268,0.000199,2]
[337685001,1725957038808,-155.89106462,0.0002,2]
[337685002,1725957038823,-300.0,0.00020376,2]
[337685003,1725957038834,-300.0,0.00020376,2]
[337685004,1725957038847,-5155.99763615,0.00020377,2]
[337685005,1725957038857,-155.0,0.0002069,3]
[337685006,1725957038867,-3290.16365064,0.000207,2]
[337685007,1725957038876,-285.96474525,0.00020798,2]
[337685008,1725957038887,-214.18857715,0.00020798,2]
[337685009,1725957038897,-4481.68296025,0.000208,2]
[337685010,1725957038908,-9980.39064883,0.000208,2]
[337685011,1725957038918,-9980.39064883,0.000208,2]
[337685012,1725957038927,-9980.39064883,0.000208,2]
[337685013,1725957038937,-9980.39064883,0.000208,2]
[337685014,1725957038946,-251.0,0.00020822,2]
[337685015,1725957038956,-215.2,0.0002089,3]
[337685016,1725957038965,-645.64,0.0002089,3]
[337685017,1725957038975,-151.0,0.000209,2]
[337685018,1725957038984,-151.0,0.000209,2]
[337685019,1725957038994,-151.0,0.000209,2]
[337685020,1725957039004,-292.13078,0.000209,2]
[337685021,1725957039014,-292.13078,0.000209,2]
[337685022,1725957039023,-336.472475,0.000209,2]
[337685023,1725957039032,-336.472475,0.000209,2]
[337685024,1725957039042,-638.571012,0.000209,2]
[337685025,1725957039051,-638.571012,0.000209,2]
[337685026,1725957039062,-151.0,0.000209,2]
[337685027,1725957039071,-655.64421,0.000209,2]
[337685028,1725957039082,-655.64421,0.000209,2]
[337685029,1725957039093,-693.96913,0.000209,2]
[337685030,1725957039104,-693.96913,0.000209,2]
[337685031,1725957039115,-151.0,0.000209,2]
[337685032,1725957039125,-997.51919,0.000209,2]
[337685033,1725957039134,-151.0,0.000209,2]
[337685034,1725957039144,-997.51919,0.000209,2]
[337685035,1725957039155,-212.193803,0.000209,2]
[337685036,1725957039166,-151.0,0.000209,2]
[337685037,1725957039177,-700.366716,0.000209,2]
[337685038,1725957039187,-151.0,0.000209,2]
[337685039,1725957039197,-700.366716,0.000209,2]
[337685040,1725957039207,-151.0,0.000209,2]
[337685041,1725957039217,-294.18916,0.000209,2]
[337685042,1725957039227,-294.18916,0.000209,2]
[337685043,1725957039237,-428.64023,0.000209,2]
[337685044,1725957039247,-151.0,0.000209,2]
[337685045,1725957039258,-428.64023,0.000209,2]
[337685046,1725957039268,-729.247817,0.000209,2]
[337685047,1725957039277,-729.247817,0.000209,2]
[337685048,1725957039287,-921.032434,0.000209,2]
[337685049,1725957039297,-921.032434,0.000209,2]
[337685050,1725957039307,-151.0,0.000209,2]
[337685051,1725957039317,-1108.069885,0.000209,2]
[337685052,1725957039327,-1108.069885,0.000209,2]
[337685053,1725957039337,-662.541338,0.000209,2]
[337685054,1725957039347,-662.541338,0.000209,2]
[337685055,1725957039356,-387.021348,0.000209,2]
[337685056,1725957039366,-387.021348,0.000209,2]
[337685057,1725957039375,-151.0,0.000209,2]
[337685058,1725957039385,-4626.88133287,0.000209,2]
[337685059,1725957039394,-4626.88133286,0.000209,2]
[337685060,1725957039404,-4626.88133286,0.000209,2]
[337685061,1725957039413,-4626.88133286,0.000209,2]
[337685062,1725957039430,-160.0,0.00020912,7]
[337685063,1725957039445,-150.419,0.00020978,2]
[337685064,1725957039456,-500.0,0.00020998,2]
[337685065,1725957039466,-500.0,0.00020998,2]
[337685066,1725957039476,-500.0,0.00020998,2]
[337685067,1725957039486,-500.0,0.00020998,2]
[337685068,1725957039496,-500.0,0.00020998,2]
[337685069,1725957039507,-500.0,0.00020998,2]
[337685070,1725957039517,-500.0,0.00020998,2]
[337685071,1725957039526,-500.0,0.00020998,2]
[337685072,1725957039536,-500.0,0.00020998,2]
[337685073,1725957039547,-500.0,0.00020998,2]
[337685074,1725957039557,-500.0,0.00020998,2]
[337685075,1725957039594,-500.0,0.00020998,2]
[337685076,1725957039603,-500.0,0.00020998,2]
[337685077,1725957039613,-574.58736242,0.00020998,2]
[337685078,1725957039624,-500.0,0.00020998,2]
[337685079,1725957039634,-500.0,0.00020998,2]
[337685080,1725957039643,-500.0,0.00020998,2]
[337685081,1725957039653,-500.0,0.00020998,2]
[337685082,1725957039663,-500.0,0.00020998,2]
[337685083,1725957039673,-151.0,0.00020998,2]
[337685084,1725957039682,-151.0,0.00020999,2]
[337685085,1725957039692,-151.0,0.00020999,2]
[337685086,1725957039702,-151.0,0.00020999,2]
[337685087,1725957039712,-294.18916,0.00020999,2]
[337685088,1725957039722,-294.18916,0.00020999,2]
[337685090,1725957039732,-4000.0,0.00020999,2]
[337685091,1725957039742,-4000.0,0.00020999,2]
[337685092,1725957039752,-4000.0,0.00020999,2]
[337685093,1725957039762,-4000.0,0.00020999,2]
[337685094,1725957039772,-428.64023,0.00020999,2]
[337685095,1725957039785,-4000.0,0.00020999,2]
[337685096,1725957039795,-4000.0,0.00020999,2]
[337685097,1725957039805,-151.0,0.00020999,2]
[337685098,1725957039815,-4000.0,0.00020999,2]
[337685099,1725957039826,-4060.43796,0.00020999,2]
[337685101,1725957039836,-428.64023,0.00020999,2]
[337685102,1725957039846,-921.032434,0.00020999,2]
[337685104,1725957039858,-921.032434,0.00020999,2]
[337685105,1725957039868,-151.0,0.00020999,2]
[337685106,1725957039879,-151.0,0.00020999,2]
[337685107,1725957039890,-662.541338,0.00020999,2]
[337685108,1725957039900,-662.541338,0.00020999,2]
[337685109,1725957039909,-662.541338,0.00020999,2]
[337685110,1725957039919,-662.541338,0.00020999,2]
[337685111,1725957039929,-151.0,0.00020999,2]
[337685112,1725957039940,-401.394196,0.00021,3]
[337685113,1725957039951,-10175.85715254,0.00021,2]
[337685114,1725957039960,-3362.70350666,0.00021,2]
[337685115,1725957039971,-3362.70350665,0.00021,2]
[337685116,1725957039980,-3362.70350665,0.00021,2]
[337685117,1725957039990,-3362.70350665,0.00021,2]
[337685118,1725957039999,-259.24014988,0.00021,2]
[337685119,1725957040009,-233.62494191,0.00021,2]
[337685120,1725957040019,-2000.0,0.00021,2]
[337685121,1725957040029,-151.0,0.00021,2]
[337685122,1725957040038,-151.0,0.00021,2]
[337685123,1725957040048,-151.0,0.00021,2]
[337685124,1725957040058,-151.0,0.00021,2]
[337685125,1725957040068,-3000.0,0.00021,2]
[337685126,1725957040082,-292.13078,0.00021,2]
[337685127,1725957040092,-292.13078,0.00021,2]
[337685128,1725957040335,-292.13078,0.00021,2]
[337685129,1725957040356,-292.13078,0.00021,2]
[337685130,1725957040366,-336.472475,0.00021,2]
[337685131,1725957040375,-336.472475,0.00021,2]
[337685132,1725957040385,-336.472475,0.00021,2]
[337685133,1725957040394,-336.472475,0.00021,2]
[337685134,1725957040403,-638.571012,0.00021,2]
[337685135,1725957040413,-638.571012,0.00021,2]
[337685136,1725957040423,-638.571012,0.00021,2]
[337685137,1725957040434,-638.571012,0.00021,2]
[337685138,1725957040445,-151.0,0.00021,2]
[337685139,1725957040455,-151.0,0.00021,2]
[337685140,1725957040468,-655.64421,0.00021,2]
[337685141,1725957040478,-655.64421,0.00021,2]
[337685142,1725957040488,-655.64421,0.00021,2]
[337685143,1725957040498,-655.64421,0.00021,2]
[337685144,1725957040507,-693.96913,0.00021,2]
[337685145,1725957040517,-693.96913,0.00021,2]
[337685146,1725957040527,-693.96913,0.00021,2]
[337685147,1725957040536,-693.96913,0.00021,2]
[337685148,1725957040546,-151.0,0.00021,2]
[337685149,1725957040555,-154.314655,0.00021,2]
[337685150,1725957040566,-997.51919,0.00021,2]
[337685151,1725957040575,-997.51919,0.00021,2]
[337685152,1725957040585,-151.0,0.00021,2]
[337685153,1725957040594,-151.0,0.00021,2]
[337685154,1725957040603,-997.51919,0.00021,2]
[337685155,1725957040612,-997.51919,0.00021,2]
[337685156,1725957040621,-151.0,0.00021,2]
[337685157,1725957040631,-151.0,0.00021,2]
[337685158,1725957040639,-700.366716,0.00021,2]
[337685159,1725957040649,-700.366716,0.00021,2]
[337685160,1725957040658,-151.0,0.00021,2]
[337685161,1725957040668,-151.0,0.00021,2]
[337685162,1725957040677,-700.366716,0.00021,2]
[337685163,1725957040686,-700.366716,0.00021,2]
[337685164,1725957040695,-294.18916,0.00021,2]
[337685165,1725957040704,-294.18916,0.00021,2]
[337685166,1725957040713,-294.18916,0.00021,2]
[337685167,1725957040722,-294.18916,0.00021,2]
[337685168,1725957040731,-428.64023,0.00021,2]
[337685169,1725957040741,-428.64023,0.00021,2]
[337685170,1725957040750,-151.0,0.00021,2]
[337685171,1725957040759,-151.0,0.00021,2]
[337685172,1725957040769,-428.64023,0.00021,2]
[337685173,1725957040779,-428.64023,0.00021,2]
[337685174,1725957040790,-729.247817,0.00021,2]
[337685175,1725957040799,-729.247817,0.00021,2]
[337685176,1725957040809,-729.247817,0.00021,2]
[337685177,1725957040818,-729.247817,0.00021,2]
[337685178,1725957040828,-921.032434,0.00021,2]
[337685179,1725957040838,-921.032434,0.00021,2]
[337685180,1725957040847,-921.032434,0.00021,2]
[337685181,1725957040856,-921.032434,0.00021,2]
[337685182,1725957040867,-154.508817,0.00021,2]
[337685183,1725957040877,-1108.069885,0.00021,2]
[337685184,1725957040886,-1108.069885,0.00021,2]
[337685185,1725957040896,-1108.069885,0.00021,2]
[337685186,1725957040906,-1108.069885,0.00021,2]
[337685187,1725957040916,-662.541338,0.00021,2]
[337685188,1725957040925,-662.541338,0.00021,2]
[337685189,1725957040935,-662.541338,0.00021,2]
[337685190,1725957040945,-662.541338,0.00021,2]
[337685191,1725957040955,-662.541338,0.00021,2]
[337685192,1725957040965,-662.541338,0.00021,2]
[337685193,1725957040975,-387.021348,0.00021,2]
[337685194,1725957040984,-387.021348,0.00021,2]
[337685195,1725957040994,-387.021348,0.00021,2]
[337685196,1725957041004,-387.021348,0.00021,2]
[337685197,1725957041013,-151.0,0.00021,2]
[337685198,1725957041022,-150.0,0.00021006,2]
[337685200,1725957041031,-523.0,0.00021006,2]
[337685201,1725957041040,-151.0,0.00021009,2]
[337685202,1725957041049,-729.247817,0.00021009,2]
[337685203,1725957041059,-729.247817,0.00021009,2]
[337685204,1725957041068,-844.7857433,0.0002101,2]
[337685206,1725957041546,-151.0,0.000209,2]
[337685207,1725957041557,-151.0,0.00021,2]
[337685208,1725957041566,-151.0,0.00021,2]
[337685209,1725957041575,-151.0,0.00021009,2]
[337685210,1725957041587,-2155.2142567,0.0002101,2]
[337685211,1725957041596,-294.18916,0.0002101,2]
[337685212,1725957041605,-294.18916,0.0002101,2]
[337685213,1725957041615,-428.64023,0.0002101,2]
[337685214,1725957041626,-428.64023,0.0002101,2]
[337685215,1725957041635,-921.032434,0.0002101,2]
[337685216,1725957041644,-921.032434,0.0002101,2]
[337685217,1725957041654,-1000.0,0.0002101,2]
[337685218,1725957041663,-1000.0,0.0002101,2]
[337685219,1725957041672,-1000.0,0.0002101,2]
[337685220,1725957041681,-1000.0,0.0002101,2]
[337685221,1725957041690,-1000.0,0.0002101,2]
[337685222,1725957041699,-1000.0,0.0002101,2]
[337685223,1725957041708,-1000.0,0.0002101,2]
[337685224,1725957041717,-1000.0,0.0002101,2]
[337685225,1725957041727,-1000.0,0.0002101,2]
[337685226,1725957041736,-1000.0,0.0002101,2]
[337685227,1725957041746,-1000.0,0.0002101,2]
[337685228,1725957041755,-1000.0,0.0002101,2]
[337685229,1725957041764,-1000.0,0.0002101,2]
[337685230,1725957041774,-1000.0,0.0002101,2]
[337685231,1725957041787,-1000.0,0.0002101,2]
[337685232,1725957041796,-1000.0,0.0002101,2]
[337685233,1725957041806,-1000.0,0.0002101,2]
[337685234,1725957041815,-1000.0,0.0002101,2]
[337685235,1725957041826,-1000.0,0.0002101,2]
[337685236,1725957041835,-1000.0,0.0002101,2]
[337685237,1725957041844,-1000.0,0.0002101,2]
[337685238,1725957041856,-1000.0,0.0002101,2]
[337685239,1725957041867,-1000.0,0.0002101,2]
[337685240,1725957041877,-1000.0,0.0002101,2]
[337685241,1725957041887,-1000.0,0.0002101,2]
[337685242,1725957041897,-1000.0,0.0002101,2]
[337685243,1725957041908,-1000.0,0.0002101,2]
[337685244,1725957041919,-1000.0,0.0002101,2]
[337685245,1725957041930,-1000.0,0.0002101,2]
[337685246,1725957041940,-1000.0,0.0002101,2]
[337685247,1725957041952,-1000.0,0.0002101,2]
[337685248,1725957041962,-1000.0,0.0002101,2]
[337685249,1725957041972,-1000.0,0.0002101,2]
[337685250,1725957041981,-1000.0,0.0002101,2]
[337685251,1725957041991,-1000.0,0.0002101,2]
[337685252,1725957042000,-1000.0,0.0002101,2]
[337685253,1725957042010,-1000.0,0.0002101,2]
[337685254,1725957042019,-1000.0,0.0002101,2]
[337685255,1725957042028,-1000.0,0.0002101,2]
[337685256,1725957042038,-1000.0,0.0002101,2]
[337685257,1725957042047,-1000.0,0.0002101,2]
[337685258,1725957042057,-1000.0,0.0002101,2]
[337685259,1725957042066,-1059.900121,0.0002101,2]
[337685260,1725957042076,-3000.0,0.0002102,2]
[337685261,1725957042087,-151.0,0.0002102,2]
[337685262,1725957042097,-151.0,0.0002102,2]
[337685263,1725957042107,-466.49113729,0.00021027,2]
[337685264,1725957042116,-3000.0,0.0002103,2]
[337685265,1725957042126,-662.541338,0.0002103,2]
[337685266,1725957042135,-662.541338,0.0002103,2]
[337685267,1725957042144,-3000.0,0.0002104,2]
[337685268,1725957042154,-160.0,0.00021044,8]
[337685269,1725957042163,-3000.0,0.0002105,2]